bitfinex/quotes_ETHUSD_20251110
["timestamp","ask_amount","ask_price","bid_price","bid_amount"]
[1762732971447,0.02,3566.9,3566.8,3.2846335]
[1762732973931,0.02,3566.9,3566.8,0.481]
[1762732974321,0.02,3566.9,3566.8,3.2846335]
[1762732976032,0.02,3566.9,3566.8,0.621]
[1762732976235,0.02,3566.9,3566.8,0.481]
[1762732977332,0.02,3566.9,3566.8,3.2846335]
[1762732977644,0.02,3566.9,3566.8,0.481]
[1762732977844,0.02,3566.9,3566.8,3.4246335]
[1762732978048,0.022,3566.9,3566.8,3.2846335]
[1762732979524,0.022,3566.9,3566.8,4.5443455]
[1762732979747,0.002,3567.3,3567.2,2.80331912]
[1762732980236,0.002,3567.3,3567.2,3.28431912]
[1762732980442,0.002,3567.3,3567.2,4.94953512]
[1762732981145,0.02,3567.9,3567.8,4.06255969]
[1762732981360,0.02,3567.9,3567.8,4.54355969]
[1762732981656,0.02,3568.9,3568.8,2.80206231]
[1762732981823,0.02,3568.9,3568.8,2.98546231]
[1762732982023,0.02,3568.9,3568.8,0.6501]
[1762732982228,0.02,3568.9,3568.8,3.45216231]
[1762732982431,0.02,3568.9,3568.4,0.1988]
[1762732982610,0.1663,3568.3,3567.2,0.1988]
[1762732983111,0.1663,3568.3,3565.9,0.02904341]
[1762732983112,0.405504,3568.1,3566.4,0.4667]
[1762732983319,0.405504,3567.9,3566.4,3.27057361]
[1762732983513,1.259712,3567.7,3566.5,2.80385286]
[1762732983714,0.405504,3568.0,3566.7,2.80366698]
[1762732983715,1.259712,3568.0,3566.7,2.80366698]
[1762732983913,1.259712,3568.0,3566.6,2.80379072]
[1762732984148,0.405504,3568.2,3566.7,2.80371211]
[1762732984350,0.405504,3568.2,3566.1,0.02]
[1762732984351,0.405504,3568.0,3566.1,0.02]
[1762732984648,1.665216,3567.6,3566.3,2.80394807]
[1762732984951,1.665216,3567.6,3566.3,2.8040021]
[1762732984952,4.46822274,3567.6,3566.3,2.8040021]
[1762732985119,0.871004,3567.6,3566.2,2.99778089]
[1762732985315,0.871004,3567.6,3566.1,0.02]
[1762732985316,0.405504,3567.6,3566.1,0.02]
[1762732985527,0.90686293,3567.5,3566.1,0.02]
[1762732985861,1.665216,3567.0,3566.1,0.02]
[1762732986059,2.80339153,3567.2,3566.1,0.02]
[1762732986221,0.89910745,3567.1,3566.1,0.02]
[1762732986426,4.93417648,3567.1,3566.1,0.02]
[1762732986661,3.20908135,3566.9,3566.1,0.02]
[1762732986861,4.46932121,3566.2,3566.1,0.02]
[1762732987162,4.93482121,3566.2,3566.1,0.02]
[1762732987464,4.46979306,3565.6,3565.5,0.001]
[1762732987761,1.665216,3565.6,3565.5,0.001]
[1762732987986,4.93529306,3565.6,3565.5,0.001]
[1762732988136,2.130716,3565.6,3565.5,0.001]
[1762732988572,4.93529306,3565.6,3565.5,0.001]
[1762732989535,3.21039573,3565.2,3564.1,0.02]
[1762732989774,1.665216,3564.5,3564.1,0.02]
[1762732989954,0.1863,3564.2,3564.1,0.02]
[1762732990353,1.911512,3564.2,3564.1,0.02]
[1762732990650,5.12269469,3564.2,3564.1,0.02]
[1762732990868,1.057304,3564.2,3564.1,0.02]
[1762732991065,0.591804,3564.2,3564.1,0.02]
[1762732991376,1.259712,3564.5,3564.1,0.02]
[1762732991377,0.405504,3564.5,3564.1,0.02]
[1762732991714,0.1863,3565.1,3564.1,0.2188]
[1762732991843,0.405504,3565.0,3564.1,0.02]
[1762732992184,0.405504,3565.0,3564.1,0.2188]
[1762732992763,0.405504,3565.0,3564.1,0.02]
[1762732992973,3.21084951,3564.7,3564.1,0.02]
[1762732993176,3.21072377,3564.8,3564.1,0.02]
[1762732993383,0.405504,3564.3,3564.1,0.02]
[1762732993581,0.4655,3564.2,3564.1,0.02]
[1762732994276,2.8054295,3564.6,3564.1,0.02]
[1762732994477,0.871004,3564.8,3564.1,0.02]
[1762732994648,0.4655,3564.7,3564.1,0.02]
[1762732995349,0.1863,3565.1,3564.1,0.02]
[1762732995585,0.4655,3565.0,3564.1,0.02]
[1762732996326,0.4655,3565.0,3564.1,0.021]
[1762732997512,0.1863,3565.1,3564.1,0.021]
[1762732997686,0.1863,3565.1,3564.1,0.2198]
[1762732997887,0.1863,3565.1,3564.1,3.02553204]
[1762732998219,0.1863,3565.1,3564.1,3.0255528]
[1762732998424,0.4655,3565.7,3564.1,0.2198]
[1762732998630,0.1863,3565.4,3564.6,2.80536195]
[1762732998998,0.002,3565.9,3564.7,2.80521023]
[1762732998999,1.261712,3565.9,3564.7,2.80521023]
[1762732999231,0.002,3565.9,3564.2,0.4667]
[1762732999403,0.002,3565.9,3564.3,2.80559997]
[1762732999599,0.14,3564.9,3564.8,2.80515433]
[1762733000011,0.14,3564.9,3564.8,3.27185433]
[1762733000615,0.14,3565.1,3564.8,0.4667]
[1762733000825,0.002,3565.9,3564.7,2.80528515]
[1762733000826,0.14,3564.8,3564.7,2.80528515]
[1762733000989,0.14,3564.8,3564.6,0.4667]
[1762733001742,0.14,3564.8,3564.7,2.833338]
[1762733001903,0.002,3565.9,3565.3,2.80474674]
[1762733002101,0.002,3565.9,3565.4,3.00353037]
[1762733002305,0.002,3565.9,3565.5,0.02804655]
[1762733002527,0.002,3565.9,3565.5,2.80465572]
[1762733002732,0.002,3565.9,3565.6,0.4667]
[1762733002915,0.002,3565.9,3565.6,3.27125829]
[1762733003321,0.002,3565.9,3565.7,2.8044824]
[1762733003710,0.002,3565.9,3565.6,0.4667]
[1762733004114,0.002,3565.9,3565.6,3.27125016]
[1762733004312,0.002,3565.9,3564.5,2.80537499]
[1762733004313,0.6001,3565.8,3564.5,2.80537499]
[1762733004501,0.6001,3565.8,3564.4,0.4667]
[1762733004700,0.6001,3565.8,3564.6,2.80535958]
[1762733004931,0.6001,3565.8,3564.7,2.80527887]
[1762733005129,0.002,3565.9,3564.9,2.80506556]
[1762733005333,0.002,3565.9,3564.5,0.4667]
[1762733005334,0.1346,3565.8,3564.5,0.4667]
[1762733005832,2.80457914,3565.6,3564.5,0.4667]
[1762733006036,0.6001,3565.8,3564.5,0.4667]
[1762733006236,0.6001,3565.8,3564.1,0.2198]
[1762733006237,0.405504,3565.6,3564.1,0.2198]
[1762733006434,0.405504,3565.4,3564.1,0.021]
[1762733006761,2.97197869,3564.2,3564.1,0.021]
[1762733006939,0.1663,3564.2,3564.1,0.021]
[1762733007104,2.97197869,3564.2,3564.1,0.021]
[1762733007305,3.43747869,3564.2,3564.1,0.021]
[1762733007635,1.426012,3564.2,3564.1,0.021]
[1762733007838,1.259712,3564.4,3564.1,0.021]
[1762733008003,2.80544255,3564.5,3564.1,0.021]
[1762733008004,2.80559997,3564.3,3564.1,0.021]
[1762733008204,0.405504,3564.4,3564.1,0.021]
[1762733008949,0.1663,3564.6,3564.1,0.021]
[1762733009306,0.1663,3564.9,3564.1,0.2198]
[1762733009744,0.58918722,3565.4,3564.1,0.2198]
[1762733009944,0.02810345,3565.3,3564.1,0.6865]
[1762733010237,0.4655,3565.4,3564.1,0.6865]
[1762733010437,0.4655,3565.4,3564.2,0.4667]
[1762733010860,0.72391498,3565.8,3564.2,0.4667]
[1762733011015,0.1346,3565.8,3564.2,0.4667]
[1762733011221,0.25617664,3565.7,3564.2,0.4667]
[1762733011614,0.1346,3565.8,3564.2,0.4667]
[1762733011816,0.14,3564.9,3564.3,0.14]
[1762733012228,0.14,3564.9,3564.4,0.4664]
[1762733012564,0.405504,3565.7,3564.4,0.4664]
[1762733012778,0.25672861,3565.6,3564.4,0.4664]
[1762733012960,0.1346,3565.8,3564.4,0.4664]
[1762733013272,0.25674588,3565.7,3564.4,0.4664]
[1762733015056,1.32972637,3565.9,3564.4,0.4664]
[1762733015057,0.59010061,3565.8,3564.4,0.4664]
[1762733015230,0.25723835,3565.7,3564.4,0.4664]
[1762733015551,0.25723835,3565.6,3564.4,0.4664]
[1762733015753,0.1366,3565.9,3564.4,0.4664]
[1762733015754,0.72670061,3565.9,3564.4,0.4664]
[1762733015959,0.25744859,3565.8,3564.4,0.4664]
[1762733016158,0.4721,3564.5,3564.1,0.021]
[1762733016362,0.1663,3564.2,3563.0,0.1438]
[1762733016589,0.73762576,3564.8,3564.1,0.1854]
[1762733016722,0.1864,3565.2,3563.4,0.4664]
[1762733016723,0.25749826,3564.7,3563.4,0.4664]
[1762733016923,0.59010061,3564.8,3563.4,0.4664]
[1762733017157,0.25750289,3564.7,3563.4,0.4664]
[1762733017460,1.06910061,3565.1,3563.4,0.4664]
[1762733017624,0.8476425,3565.0,3563.4,0.4664]
[1762733017952,0.8476425,3564.9,3563.4,0.4664]
[1762733018161,0.25754189,3564.8,3563.4,0.4664]
[1762733018363,0.25754842,3564.7,3563.4,0.4664]
[1762733018532,0.59338178,3565.1,3563.4,0.4664]
[1762733018737,0.25755295,3565.0,3563.4,0.4664]
[1762733018959,0.27755295,3564.9,3563.4,0.4664]
[1762733019152,0.25755295,3564.8,3563.4,0.4664]
[1762733020729,0.02,3564.9,3563.4,0.4664]
[1762733020730,0.02,3564.9,3564.7,0.6803]
[1762733020927,0.02,3564.9,3564.8,0.4949]
[1762733021159,0.02,3564.9,3564.2,0.1854]
[1762733021461,0.02,3564.9,3564.2,0.6518]
[1762733021665,0.02,3564.9,3564.8,0.4949]
[1762733022164,0.02,3564.9,3564.8,0.9613]
[1762733024073,0.02,3564.9,3564.8,1.1013]
[1762733024451,0.02,3564.9,3564.8,0.9613]
[1762733025782,0.02,3564.9,3564.8,0.4949]
[1762733026141,0.02,3564.9,3564.4,0.4664]
[1762733026341,0.02,3564.9,3564.2,0.1854]
[1762733026744,0.02,3564.9,3564.3,0.4664]
[1762733027642,0.02,3564.9,3564.8,0.4949]
[1762733028177,0.02,3564.9,3564.8,0.9584]
[1762733028691,0.02,3564.9,3564.8,0.4949]
[1762733028860,0.02,3564.9,3564.4,0.4635]
[1762733029890,0.02,3564.9,3564.8,0.4793]
[1762733030788,0.2802,3564.9,3564.2,0.1854]
[1762733030960,0.2802,3564.9,3564.2,0.1354]
[1762733031495,0.02,3564.9,3564.8,0.4793]
[1762733031998,0.02,3564.9,3564.3,0.4635]
[1762733033090,0.02,3564.9,3563.9,0.4635]
[1762733033294,0.02,3564.9,3564.1,0.1849]
[1762733033461,0.02,3564.9,3564.8,0.4793]
[1762733033810,0.02,3564.9,3564.3,0.4635]
[1762733033963,0.02,3564.9,3564.1,0.1849]
[1762733034471,0.14,3564.5,3564.1,0.1849]
[1762733035002,0.14,3564.5,3563.9,0.14]
[1762733036820,0.14,3564.5,3563.9,0.6035]
[1762733037799,0.14,3564.5,3563.9,0.14]
[1762733038298,0.14,3564.5,3564.4,0.6642]
[1762733038862,0.14,3564.5,3564.4,1.1277]
[1762733039371,0.02,3564.9,3564.4,1.1277]
[1762733039372,0.16,3564.9,3564.4,1.1277]
[1762733039585,0.16,3564.9,3564.5,0.4635]
[1762733039784,0.16,3564.9,3564.8,0.4793]
[1762733040915,0.16,3564.9,3564.5,0.4635]
[1762733041117,0.16,3564.9,3564.3,0.14]
[1762733041413,0.16,3564.9,3564.1,0.1849]
[1762733041414,0.14,3564.6,3564.1,0.1849]
[1762733041615,0.14,3564.6,3564.0,0.14]
[1762733041792,0.14,3564.0,3563.5,0.4635]
[1762733042119,0.14,3564.3,3563.9,0.4793]
[1762733042624,0.02,3564.9,3563.0,0.001]
[1762733042625,0.1018,3564.0,3563.0,0.001]
[1762733042823,0.2643,3563.1,3563.0,0.001]
[1762733042989,0.52256291,3563.1,3563.0,0.001]
[1762733043330,0.405504,3563.0,3562.6,0.001]
[1762733043526,0.0048,3562.7,3562.6,0.001]
[1762733043682,0.26306291,3562.7,3562.6,0.001]
[1762733043888,0.1939,3563.5,3562.6,0.9456]
[1762733044249,0.25755527,3563.4,3562.6,0.4726]
[1762733044522,0.59312074,3564.3,3562.7,0.473]
[1762733044711,0.74823741,3564.0,3562.7,0.473]
[1762733044911,0.25743741,3563.9,3562.7,0.473]
[1762733045237,0.25743741,3563.8,3562.6,0.001]
[1762733045530,0.25743741,3563.7,3562.6,0.001]
[1762733045738,1.39041549,3564.8,3562.6,0.474]
[1762733045739,0.25743741,3563.6,3562.6,0.474]
[1762733045921,0.25743741,3563.5,3562.6,0.474]
[1762733046106,0.59309297,3564.3,3562.6,0.474]
[1762733046306,0.25740519,3564.0,3562.6,0.474]
[1762733046523,0.25740519,3563.9,3562.6,0.474]
[1762733046727,0.6866,3564.1,3562.6,0.474]
[1762733046728,0.25740519,3563.8,3562.6,0.474]
[1762733047044,0.25740519,3563.7,3562.6,0.474]
[1762733047241,0.25740519,3563.6,3562.6,0.001]
[1762733047393,0.1958,3564.1,3562.6,0.001]
[1762733047394,0.25740519,3563.5,3562.6,0.001]
[1762733047593,0.2525,3562.7,3562.6,0.001]
[1762733048032,0.99617027,3562.7,3562.6,0.001]
[1762733049897,0.50967027,3562.7,3562.6,0.001]
[1762733050096,0.99617027,3562.7,3562.6,0.001]
[1762733050801,0.50967027,3562.7,3562.6,0.001]
[1762733051009,0.2525,3562.7,3562.6,0.001]
[1762733051234,0.4865,3563.2,3562.6,0.001]
[1762733051535,0.25647095,3563.1,3562.6,0.001]
[1762733051696,0.25647095,3563.0,3562.6,0.001]
[1762733052195,0.1939,3563.4,3562.6,0.001]
[1762733052402,0.74720194,3563.3,3562.6,0.001]
[1762733052596,0.0586,3562.7,3562.6,0.001]
[1762733053006,0.5451,3562.7,3562.6,0.001]
[1762733053419,0.31500425,3562.7,3562.6,0.001]
[1762733053619,0.80150425,3562.7,3562.6,0.001]
[1762733054128,0.31500425,3562.7,3562.6,0.001]
[1762733054434,0.80150425,3562.7,3562.6,0.001]
[1762733054736,0.80145421,3562.7,3562.6,0.001]
[1762733054938,0.0586,3562.7,3562.6,0.001]
[1762733055244,0.31497043,3562.7,3562.6,0.001]
[1762733055441,1.146952,3564.0,3562.6,0.001]
[1762733055442,0.14,3563.6,3562.6,1.0856]
[1762733055660,0.51890345,3564.0,3562.6,0.001]
[1762733055860,0.66187574,3563.9,3562.6,0.001]
[1762733056155,0.405504,3563.7,3562.6,0.001]
[1762733056371,0.25637174,3563.6,3562.6,0.001]
[1762733056568,0.25637174,3563.5,3562.6,0.001]
[1762733056864,0.25637174,3563.4,3562.6,0.001]
[1762733057174,0.25637174,3563.3,3562.6,0.001]
[1762733057340,0.25637174,3563.2,3562.6,0.001]
[1762733057526,0.25637174,3563.1,3562.6,0.001]
[1762733058184,0.4908,3563.0,3562.6,0.001]
[1762733058383,0.2525,3562.7,3562.6,0.001]
[1762733058541,0.1939,3562.7,3562.6,0.001]
[1762733059096,0.2525,3562.7,3562.6,0.001]
[1762733059241,0.99558092,3562.7,3562.6,0.001]
[1762733059767,1.99224064,3562.7,3562.6,0.001]
[1762733059960,0.405504,3562.6,3562.2,0.001]
[1762733060284,0.405504,3562.4,3561.1,0.02]
[1762733060486,0.627104,3561.2,3561.1,0.02]
[1762733060657,0.405504,3561.1,3559.1,0.2005]
[1762733060847,0.25658092,3561.0,3560.1,0.2005]
[1762733061075,0.25658092,3560.9,3560.1,0.2005]
[1762733061273,0.25658092,3560.8,3560.1,0.2005]
[1762733061579,0.25658092,3560.7,3560.1,0.02]
[1762733061750,0.28468437,3560.6,3560.1,0.02]
[1762733061951,0.02810345,3560.6,3560.1,0.02]
[1762733062145,0.25629025,3560.5,3560.1,0.02]
[1762733062382,0.02810345,3561.0,3560.1,0.02]
[1762733062557,0.25608888,3560.9,3560.1,0.02]
[1762733062880,0.25608888,3560.8,3560.1,0.02]
[1762733063082,0.25608888,3560.7,3560.1,0.02]
[1762733063284,0.28419233,3560.6,3560.1,0.02]
[1762733063587,0.0586,3560.2,3560.1,0.02]
[1762733063757,0.31462348,3560.2,3560.1,0.02]
[1762733064147,0.80112348,3560.2,3560.1,0.02]
[1762733064682,0.31462348,3560.2,3560.1,0.02]
[1762733064882,0.80112348,3560.2,3560.1,0.02]
[1762733065449,0.31462348,3560.2,3560.1,0.02]
[1762733065886,0.80112348,3560.2,3560.1,0.02]
[1762733066250,0.31462348,3560.2,3560.1,0.02]
[1762733066455,0.80112348,3560.2,3560.1,0.02]
[1762733066850,1.20662748,3560.2,3560.1,0.02]
[1762733067252,0.405504,3560.1,3559.1,0.02]
[1762733067473,0.405504,3559.9,3559.1,0.02]
[1762733067656,0.405504,3559.7,3559.1,0.02]
[1762733067851,0.405504,3559.5,3559.1,0.02]
[1762733068054,0.74,3559.9,3559.1,0.02]
[1762733068055,0.25602348,3559.4,3559.1,0.2005]
[1762733068254,0.25602348,3559.3,3559.1,0.2005]
[1762733068456,0.25602348,3559.2,3559.1,0.02]
[1762733068762,0.31462348,3559.2,3559.1,0.02]
[1762733068980,0.80112348,3559.2,3559.1,0.02]
[1762733069173,0.31462348,3559.2,3559.1,0.02]
[1762733069380,0.25602348,3559.2,3559.1,0.02]
[1762733069576,0.31892348,3559.2,3559.1,0.02]
[1762733069888,0.80112348,3559.2,3559.1,0.02]
[1762733070090,0.31892348,3559.2,3559.1,0.02]
[1762733070780,0.25602348,3559.2,3559.1,0.02]
[1762733071259,0.405504,3559.1,3558.1,0.02]
[1762733071458,0.25602348,3559.0,3558.1,0.2005]
[1762733071658,0.8,3559.2,3558.1,0.2005]
[1762733071659,0.25602348,3558.9,3558.1,0.2005]
[1762733071858,0.25602348,3558.8,3558.1,0.02]
[1762733072054,0.2374,3558.2,3558.1,0.02]
[1762733072255,0.49342348,3558.2,3558.1,0.02]
[1762733072482,0.25602348,3558.2,3558.1,0.02]
[1762733072682,0.25602348,3558.2,3558.1,1.1566]
[1762733073381,0.25602348,3558.2,3558.1,0.6762]
[1762733073591,0.25602348,3558.2,3558.1,1.1566]
[1762733073975,0.25602348,3558.2,3558.1,0.02]
[1762733074291,0.25602348,3558.2,3558.1,1.1566]
[1762733075015,0.25602348,3558.2,3558.1,1.1066]
[1762733075598,1.05072403,3560.0,3558.1,1.1066]
[1762733075911,1.05072403,3560.0,3558.2,0.4804]
[1762733075912,0.2548543,3559.9,3558.2,0.4804]
[1762733076107,0.2548543,3559.8,3558.2,0.4804]
[1762733076279,0.2548543,3559.7,3558.2,0.4804]
[1762733076612,0.2548543,3559.6,3558.2,0.4804]
[1762733076794,0.2548543,3559.5,3558.2,0.4804]
[1762733076977,0.14,3558.6,3558.2,0.4804]
[1762733077171,0.2548543,3558.5,3558.2,0.4804]
[1762733077406,0.3948543,3558.4,3558.2,0.4804]
[1762733077570,0.2548543,3558.3,3558.2,0.4804]
[1762733077998,0.2548543,3558.3,3558.2,0.9558]
[1762733078586,0.02,3559.9,3558.2,0.9558]
[1762733078778,0.25506522,3559.8,3558.3,0.4804]
[1762733078977,0.25506522,3559.7,3558.3,0.4804]
[1762733079178,0.25506522,3559.6,3558.3,0.4804]
[1762733079378,0.25506522,3559.5,3558.3,0.4804]
[1762733079711,0.02,3559.9,3558.3,0.4804]
[1762733079712,0.25506522,3559.4,3558.3,0.4804]
[1762733079889,0.25506522,3559.3,3558.3,0.4804]
[1762733080210,0.25506522,3559.2,3558.3,0.4804]
[1762733080407,0.25506522,3559.1,3558.3,0.4804]
[1762733080612,0.25506522,3559.0,3558.3,0.4804]
[1762733080811,0.25506522,3558.9,3558.3,0.4804]
[1762733080983,0.25506522,3558.8,3558.3,0.4804]
[1762733081183,0.25506522,3558.7,3558.3,0.4804]
[1762733081384,0.25506522,3558.6,3558.3,0.4804]
[1762733081584,0.02,3559.9,3558.3,0.4804]
[1762733081794,0.25530548,3559.8,3558.3,0.5085033]
[1762733081990,0.25530548,3559.7,3558.3,0.5085033]
[1762733082190,0.25530548,3559.6,3558.3,0.5085033]
[1762733082395,0.25530548,3559.5,3558.3,0.5085033]
[1762733082595,0.02,3559.9,3558.3,0.5085033]
[1762733082596,0.25530548,3559.4,3558.3,0.5085033]
[1762733082779,0.25530548,3559.3,3558.3,0.5085033]
[1762733083004,0.25530548,3559.2,3558.3,0.5085033]
[1762733083316,0.25530548,3559.1,3558.3,0.5085033]
[1762733083517,0.25530548,3559.0,3558.3,0.5085033]
[1762733083718,0.25530548,3558.9,3558.3,0.5085033]
[1762733083919,0.02,3559.9,3558.3,0.5085033]
[1762733083920,0.02,3559.9,3559.8,0.6562]
[1762733084212,0.27565998,3559.9,3559.8,0.6562]
[1762733084415,0.27565998,3559.9,3559.8,1.1366]
[1762733085303,0.27565998,3559.9,3559.8,3.94574658]
[1762733086984,2.4,3560.6,3560.5,2.80859429]
[1762733087188,2.4,3560.6,3560.5,3.28399429]
[1762733087489,2.4,3560.6,3560.5,3.74239429]
[1762733088514,2.4,3560.6,3560.5,3.88239429]
[1762733089120,2.4,3560.6,3560.5,3.28399429]
[1762733089307,2.4,3560.6,3559.9,0.4584]
[1762733089527,2.4,3560.6,3560.4,2.80861627]
[1762733089730,2.4,3560.6,3560.5,2.80859429]
[1762733090332,2.4,3560.6,3560.5,3.75338023]
[1762733090639,2.4,3560.6,3560.5,3.72529429]
[1762733092405,0.02,3560.9,3560.8,2.80835767]
[1762733092719,0.02,3560.9,3560.8,3.26665767]
[1762733092916,0.02,3560.9,3560.8,3.72505767]
[1762733093126,0.02,3561.9,3561.8,2.8075692]
[1762733093311,0.02,3561.9,3561.8,3.2658692]
[1762733094023,0.02,3561.9,3561.8,3.7242692]
[1762733098050,0.002,3562.7,3562.6,2.80693875]
[1762733098257,0.002,3562.7,3562.6,3.72363875]
[1762733099284,0.002,3562.7,3562.6,3.86363875]
[1762733100169,0.002,3562.7,3562.6,3.40523875]
[1762733100336,0.002,3562.7,3562.6,3.72363875]
[1762733101592,1e-08,3562.9,3562.8,3.26508118]
[1762733101880,1e-08,3562.9,3562.8,3.72348118]
[1762733102456,1e-08,3562.9,3562.8,3.75154899]
[1762733102976,1e-08,3562.9,3562.8,0.4583]
[1762733103141,1e-08,3562.9,3561.6,2.80768903]
[1762733103142,1.17330001,3562.9,3561.6,0.4717]
[1762733103348,1e-08,3562.9,3561.8,0.4717]
[1762733103572,1e-08,3562.9,3562.7,2.80680571]
[1762733103953,1e-08,3562.9,3562.4,0.1047]
[1762733104155,1e-08,3562.9,3562.8,2.80678118]
[1762733104685,1e-08,3562.9,3562.8,3.79014899]
[1762733104842,1e-08,3562.9,3562.8,3.76208118]
[1762733105554,1e-08,3562.9,3562.8,5.45536499]
[1762733105755,0.002,3563.5,3562.8,5.45536499]
[1762733105971,0.002,3563.5,3563.4,0.668]
[1762733106166,0.002,3563.5,3563.4,3.47430858]
[1762733106380,0.002,3563.5,3563.4,3.94600858]
[1762733106985,0.002,3563.5,3563.4,2.80630858]
[1762733107283,0.002,3563.5,3563.4,3.76160858]
[1762733109770,0.002,3563.5,3563.4,2.80630858]
[1762733109973,0.002,3563.5,3563.4,3.28990858]
[1762733110282,0.002,3563.5,3563.4,3.42990858]
[1762733111203,0.002,3563.5,3563.4,3.90160858]
[1762733111405,0.002,3563.5,3563.4,3.92967166]
[1762733112073,0.002,3563.5,3563.4,3.90160858]
[1762733112389,0.002,3563.5,3563.4,3.42990858]
[1762733113293,0.9807,3563.5,3563.4,0.14]
[1762733113479,1.1207,3563.5,3563.3,2.80637824]
[1762733113686,0.485,3563.4,3562.3,2.80714422]
[1762733113857,0.14,3562.9,3562.3,0.14]
[1762733114056,0.14,3562.7,3562.1,0.1012]
[1762733114287,0.14,3562.7,3562.0,0.14]
[1762733114493,0.14,3562.7,3562.4,2.80709196]
[1762733114972,0.4937,3562.5,3561.7,0.586]
[1762733115170,0.14,3562.4,3561.8,0.14]
[1762733115501,0.14,3562.4,3562.3,2.80717513]
[1762733116684,0.14,3562.4,3562.1,2.90846757]
[1762733116685,0.6337,3562.4,3561.8,0.14]
[1762733116877,0.6337,3562.4,3562.3,2.80717513]
[1762733117074,0.14,3562.4,3562.2,2.80718745]
[1762733117390,0.14,3562.4,3562.3,2.80717513]
[1762733117763,0.14,3562.4,3562.3,2.83524688]
[1762733118373,0.485,3563.0,3562.3,2.83524688]
[1762733118374,0.002,3563.5,3562.3,0.98337175]
[1762733118572,0.002,3563.5,3562.1,0.1012]
[1762733118573,0.74266178,3563.4,3562.1,2.90847518]
[1762733118777,0.25766178,3563.3,3562.1,2.90847518]
[1762733118979,0.25766178,3563.2,3563.1,2.80654486]
[1762733119197,0.485,3563.4,3563.2,2.80646609]
[1762733119397,0.75151465,3563.3,3563.1,2.80651643]
[1762733119622,0.25781465,3563.2,3563.1,2.80651643]
[1762733119806,0.27981465,3563.2,3563.1,2.80651643]
[1762733120124,0.27981465,3563.2,3563.0,2.80657526]
[1762733120285,0.489,3563.0,3561.8,2.8075692]
[1762733120477,0.28451465,3562.9,3561.8,2.8075692]
[1762733120671,0.25781465,3562.8,3561.8,0.4717]
[1762733120882,0.25781465,3562.7,3562.6,2.80686042]
[1762733121221,0.74221465,3562.7,3562.6,2.80686042]
[1762733121394,0.25781465,3562.7,3562.6,2.80686042]
[1762733121910,0.485,3563.3,3563.0,2.80655514]
[1762733122109,0.25801729,3563.2,3562.1,0.1012]
[1762733122284,0.25801729,3563.1,3562.7,2.80678457]
[1762733122479,0.25801729,3563.0,3562.9,2.8067024]
[1762733123624,0.75171729,3563.0,3562.7,2.80679579]
[1762733123807,0.75171729,3563.0,3562.8,2.80678118]
[1762733123808,0.45261729,3562.9,3562.8,2.80678118]
[1762733124182,1.43131729,3562.9,3562.8,2.80678118]
[1762733124382,1.43131729,3562.9,3562.6,2.80692677]
[1762733124603,0.022,3562.7,3562.6,2.8068909]
[1762733124930,0.28001729,3562.7,3562.6,2.8068909]
[1762733125546,0.28001729,3562.7,3562.5,0.001]
[1762733125836,0.28001729,3562.7,3562.5,2.80801754]
[1762733125837,0.74701729,3562.6,3562.5,2.80801754]
[1762733125986,0.25801729,3562.6,3562.5,2.80801754]
[1762733126492,1.23671729,3562.6,3562.5,2.80801754]
[1762733126933,1.8328417,3562.6,3562.5,0.001]
[1762733127340,2.80701754,3562.5,3561.1,0.02]
[1762733127638,3.49634223,3561.2,3561.1,0.02]
[1762733127811,4.35048393,3561.2,3561.1,0.02]
[1762733128004,4.83548393,3561.2,3561.1,0.02]
[1762733128323,6.83883544,3561.2,3561.1,0.02]
[1762733128506,7.08828449,3561.2,3561.1,0.02]
[1762733128832,2.80847496,3560.7,3560.1,0.02]
[1762733129039,0.0187,3560.5,3560.1,0.02]
[1762733129194,0.8728417,3560.5,3560.1,0.02]
[1762733129392,0.76171729,3560.5,3560.1,0.02]
[1762733131319,0.5037,3560.5,3560.1,0.02]
[1762733131523,0.76088458,3560.5,3560.1,0.02]
[1762733131736,3.56947885,3560.5,3560.1,0.02]
[1762733131939,4.16200159,3560.5,3560.1,0.02]
[1762733132471,1.399712,3560.4,3560.1,0.02]
[1762733132623,0.4624,3560.2,3560.1,0.02]
[1762733132823,2.45759656,3560.2,3560.1,0.02]
[1762733133030,5.85833166,3560.2,3560.1,0.02]
[1762733133342,5.26642752,3560.2,3560.1,0.02]
[1762733133717,2.45759656,3560.2,3560.1,0.02]
[1762733133919,1.97929656,3560.2,3560.1,0.02]
[1762733134159,0.4624,3560.2,3560.1,0.02]
[1762733134475,0.9407,3560.2,3560.1,0.02]
[1762733135171,0.4624,3560.2,3560.1,0.02]
[1762733135374,0.9407,3560.2,3560.1,0.02]
[1762733136079,0.4624,3560.2,3560.1,0.02]
[1762733136280,0.4783,3561.0,3560.1,0.1122]
[1762733136573,0.6024,3560.2,3560.1,0.02]
[1762733136754,0.14,3560.2,3560.1,0.02]
[1762733136922,0.14,3560.2,3560.1,3.48980986]
[1762733137328,0.14,3560.2,3560.1,3.98690986]
[1762733138135,0.14,3560.2,3560.1,3.48980986]
[1762733138627,0.14,3560.2,3560.1,0.6809]
[1762733139261,0.14,3560.2,3560.1,0.02]
[1762733139434,0.9407,3560.2,3560.1,0.02]
[1762733140059,3.74953096,3560.2,3560.1,0.02]